[Event "*** SCC Grand Prix: Titled Tuesday Blitz"]
[Site "Chess.com"]
[Date "2020.06.02"]
[Round "1"]
[White "OnePeculiarConundrum"]
[Black "Jeffinho023"]
[Result "0-1"]
[WhiteElo "2230"]
[BlackElo "2573"]
[TimeControl "180+1"]
[EndTime "10:08:13 PDT"]
[Termination "Jeffinho023 won by resignation"]

1. e4 {[%clk 0:03:00.9]} 1... e5 {[%clk 0:02:59]} 2. Nf3 {[%clk 0:03:00.8]} 2...
Nf6 {[%clk 0:02:58.9]} 3. Nxe5 {[%clk 0:02:58.8]} 3... d6 {[%clk 0:02:58.6]} 4.
Nf3 {[%clk 0:02:58.6]} 4... Nxe4 {[%clk 0:02:58.8]} 5. d4 {[%clk 0:02:58.4]}
5... d5 {[%clk 0:02:58.7]} 6. Bd3 {[%clk 0:02:57.9]} 6... Be7 {[%clk 0:02:58.7]}
7. O-O {[%clk 0:02:57.4]} 7... O-O {[%clk 0:02:58.7]} 8. Nbd2 {[%clk 0:02:55.3]}
8... Nd6 {[%clk 0:02:58.3]} 9. Re1 {[%clk 0:02:54.6]} 9... Bf5 {[%clk
0:02:57.8]} 10. Nf1 {[%clk 0:02:53.7]} 10... Nc6 {[%clk 0:02:54.6]} 11. c3
{[%clk 0:02:52.2]} 11... Re8 {[%clk 0:02:48.6]} 12. Ng3 {[%clk 0:02:51.4]} 12...
Bg6 {[%clk 0:02:46.7]} 13. Bf4 {[%clk 0:02:45.2]} 13... Bf6 {[%clk 0:02:41.9]}
14. Ne5 {[%clk 0:02:41.3]} 14... Bxe5 {[%clk 0:02:25.9]} 15. dxe5 {[%clk
0:02:16.6]} 15... Nc4 {[%clk 0:02:22.7]} 16. Bxc4 {[%clk 0:02:12.5]} 16... dxc4
{[%clk 0:02:23.6]} 17. Nf1 {[%clk 0:02:00.6]} 17... Qe7 {[%clk 0:02:16.2]} 18.
Ne3 {[%clk 0:01:56.6]} 18... Bd3 {[%clk 0:02:06.3]} 19. Nd5 {[%clk 0:01:50.7]}
19... Qd7 {[%clk 0:02:02]} 20. Qf3 {[%clk 0:01:46.7]} 20... Rad8 {[%clk
0:02:00.4]} 21. Nb4 {[%clk 0:01:30]} 21... Nxb4 {[%clk 0:01:58.1]} 22. cxb4
{[%clk 0:01:30.9]} 22... c6 {[%clk 0:01:46.8]} 23. h3 {[%clk 0:01:17.7]} 23...
Qf5 {[%clk 0:01:41.2]} 24. Qg3 {[%clk 0:01:14.5]} 24... Re6 {[%clk 0:01:32.6]}
25. Qg5 {[%clk 0:01:02.3]} 25... Qxg5 {[%clk 0:01:31]} 26. Bxg5 {[%clk
0:01:03.2]} 26... Rd5 {[%clk 0:01:25.4]} 27. Bf4 {[%clk 0:01:02.4]} 27... h6
{[%clk 0:01:24.1]} 28. a3 {[%clk 0:01:01.6]} 28... g5 {[%clk 0:01:17.2]} 29. Bg3
{[%clk 0:01:01]} 29... Bc2 {[%clk 0:01:15.7]} 30. Re2 {[%clk 0:00:59.3]} 30...
Bb3 {[%clk 0:01:13.1]} 31. Rae1 {[%clk 0:00:55.5]} 31... Kg7 {[%clk 0:01:09.9]}
32. f4 {[%clk 0:00:54.9]} 32... Kg6 {[%clk 0:01:09]} 33. fxg5 {[%clk 0:00:54.2]}
33... hxg5 {[%clk 0:01:08.4]} 34. Kf2 {[%clk 0:00:54]} 34... c5 {[%clk
0:01:01.4]} 35. bxc5 {[%clk 0:00:53.5]} 35... Rxc5 {[%clk 0:01:02.3]} 36. Re3
{[%clk 0:00:53.4]} 36... Rd5 {[%clk 0:01:01]} 37. Rf3 {[%clk 0:00:52.4]} 37...
Rd2+ {[%clk 0:00:51.5]} 38. Re2 {[%clk 0:00:52]} 38... Rxe2+ {[%clk 0:00:51.7]}
39. Kxe2 {[%clk 0:00:52.9]} 39... f5 {[%clk 0:00:51.4]} 40. Kd2 {[%clk
0:00:39.3]} 40... f4 {[%clk 0:00:50.4]} 41. Bf2 {[%clk 0:00:39.7]} 41... Rxe5
{[%clk 0:00:40]} 42. Bxa7 {[%clk 0:00:39.6]} 42... Rd5+ {[%clk 0:00:38.7]} 43.
Kc3 {[%clk 0:00:39.4]} 43... Kf5 {[%clk 0:00:33.5]} 44. Rf2 {[%clk 0:00:34.5]}
44... Ra5 {[%clk 0:00:23.3]} 45. Bb8 {[%clk 0:00:34.4]} 45... Rd5 {[%clk
0:00:21.9]} 46. h4 {[%clk 0:00:34.7]} 46... Rd3+ {[%clk 0:00:20.1]} 47. Kb4
{[%clk 0:00:34.7]} 47... Rd4 {[%clk 0:00:19.2]} 48. hxg5 {[%clk 0:00:34]} 48...
Kxg5 {[%clk 0:00:20.1]} 49. Be5 {[%clk 0:00:33.3]} 49... Re4 {[%clk 0:00:20.1]}
50. Bc3 {[%clk 0:00:33.6]} 50... Kg4 {[%clk 0:00:20.4]} 51. Kc5 {[%clk
0:00:33.8]} 51... Kg3 {[%clk 0:00:20.7]} 52. Rd2 {[%clk 0:00:32.2]} 52... Re3
{[%clk 0:00:19.9]} 53. Kd5 {[%clk 0:00:30.4]} 53... Rd3+ {[%clk 0:00:17.3]} 54.
Rxd3+ {[%clk 0:00:29.3]} 54... cxd3+ {[%clk 0:00:17.9]} 55. Ke4 {[%clk
0:00:29.8]} 55... Bc2 {[%clk 0:00:17.2]} 56. Bd2 {[%clk 0:00:29.1]} 56... Kxg2
{[%clk 0:00:17.6]} 57. Kxf4 {[%clk 0:00:29.1]} 57... Kf2 {[%clk 0:00:18.5]} 58.
b4 {[%clk 0:00:22.7]} 58... Ke2 {[%clk 0:00:18.1]} 59. Bc3 {[%clk 0:00:23]}
59... b5 {[%clk 0:00:17]} 60. Ke5 {[%clk 0:00:20.9]} 60... d2 {[%clk 0:00:17.2]}
61. Bxd2 {[%clk 0:00:21.2]} 61... Kxd2 {[%clk 0:00:18.1]} 62. Kd4 {[%clk
0:00:21.8]} 62... Ba4 {[%clk 0:00:18]} 63. Kc5 {[%clk 0:00:20.5]} 63... Kc3
{[%clk 0:00:18.9]} 64. Kd5 {[%clk 0:00:21]} 64... Kb3 {[%clk 0:00:19.8]} 65. Kd4
{[%clk 0:00:21.5]} 65... Kxa3 {[%clk 0:00:20.7]} 66. Kc3 {[%clk 0:00:22.1]}
66... Bd1 {[%clk 0:00:19.7]} 67. Kd2 {[%clk 0:00:22.3]} 67... Bh5 {[%clk
0:00:19.2]} 68. Kc3 {[%clk 0:00:22.8]} 68... Bf7 {[%clk 0:00:19.1]} 69. Kc2
{[%clk 0:00:22.6]} 69... Kxb4 {[%clk 0:00:20]} 70. Kb1 {[%clk 0:00:23.5]} 70...
Kc3 {[%clk 0:00:19.3]} 71. Ka1 {[%clk 0:00:23.9]} 71... b4 {[%clk 0:00:19.8]}
72. Kb1 {[%clk 0:00:24.3]} 72... b3 {[%clk 0:00:19.9]} 73. Kc1 {[%clk
0:00:24.6]} 73... b2+ {[%clk 0:00:19.5]} 74. Kd1 {[%clk 0:00:25]} 74... b1=Q+
{[%clk 0:00:20.1]} 75. Ke2 {[%clk 0:00:25.9]} 75... Qe4+ {[%clk 0:00:20.7]} 0-1

[Event "*** SCC Grand Prix: Titled Tuesday Blitz"]
[Site "Chess.com"]
[Date "2020.06.02"]
[Round "1"]
[White "Koalaskakistis"]
[Black "Virgo15"]
[Result "1-0"]
[WhiteElo "2402"]
[BlackElo "2736"]
[TimeControl "180+1"]
[EndTime "10:08:17 PDT"]
[Termination "Koalaskakistis won by checkmate"]

1. Nf3 {[%clk 0:02:56.5]} 1... Nf6 {[%clk 0:02:59.2]} 2. g3 {[%clk 0:02:56.6]}
2... e6 {[%clk 0:02:59.4]} 3. Bg2 {[%clk 0:02:56.8]} 3... d5 {[%clk 0:02:59.8]}
4. O-O {[%clk 0:02:57.3]} 4... Be7 {[%clk 0:02:59.4]} 5. d3 {[%clk 0:02:57.7]}
5... O-O {[%clk 0:02:59.6]} 6. Nbd2 {[%clk 0:02:58.1]} 6... c6 {[%clk
0:02:59.1]} 7. e4 {[%clk 0:02:49.6]} 7... Nbd7 {[%clk 0:02:55.2]} 8. Re1 {[%clk
0:02:38.1]} 8... a5 {[%clk 0:02:54]} 9. a4 {[%clk 0:02:36.8]} 9... b6 {[%clk
0:02:53.4]} 10. e5 {[%clk 0:02:24.7]} 10... Ne8 {[%clk 0:02:52.4]} 11. d4 {[%clk
0:02:24.4]} 11... c5 {[%clk 0:02:51.5]} 12. c3 {[%clk 0:02:19]} 12... Ba6 {[%clk
0:02:51.3]} 13. h4 {[%clk 0:02:18.1]} 13... cxd4 {[%clk 0:02:32.5]} 14. cxd4
{[%clk 0:02:15.3]} 14... Rc8 {[%clk 0:02:32.9]} 15. h5 {[%clk 0:02:11.1]} 15...
Bd3 {[%clk 0:02:32.4]} 16. Nf1 {[%clk 0:02:08.9]} 16... Bc2 {[%clk 0:02:30.6]}
17. Qe2 {[%clk 0:02:09]} 17... Qc7 {[%clk 0:02:27.3]} 18. h6 {[%clk 0:02:05.2]}
18... g6 {[%clk 0:02:19.4]} 19. Bg5 {[%clk 0:02:05.5]} 19... Bxg5 {[%clk
0:02:15.9]} 20. Nxg5 {[%clk 0:02:06.4]} 20... Qc4 {[%clk 0:02:13.9]} 21. Qg4
{[%clk 0:02:02.9]} 21... Bf5 {[%clk 0:02:13]} 22. Qh4 {[%clk 0:02:02.8]} 22...
Qb4 {[%clk 0:01:57.7]} 23. Ne3 {[%clk 0:01:48.8]} 23... Nc7 {[%clk 0:01:35]} 24.
g4 {[%clk 0:01:40]} 24... Bd3 {[%clk 0:01:33.1]} 25. Rec1 {[%clk 0:01:18.5]}
25... Qxd4 {[%clk 0:01:22.1]} 26. Rd1 {[%clk 0:01:12.4]} 26... Nxe5 {[%clk
0:01:15.8]} 27. Nh3 {[%clk 0:00:52.8]} 27... Na6 {[%clk 0:01:08.9]} 28. Qf6
{[%clk 0:00:48]} 28... Nf3+ {[%clk 0:01:04.5]} 29. Qxf3 {[%clk 0:00:47.5]} 29...
Qxb2 {[%clk 0:00:55.3]} 30. Ra2 {[%clk 0:00:19.3]} 30... Qc3 {[%clk 0:00:41.1]}
31. Nxd5 {[%clk 0:00:17.3]} 31... exd5 {[%clk 0:00:38.2]} 32. Rxd3 {[%clk
0:00:17.6]} 32... Qe5 {[%clk 0:00:29.5]} 33. Re2 {[%clk 0:00:12.6]} 33... Rc1+
{[%clk 0:00:27.6]} 34. Bf1 {[%clk 0:00:12.9]} 34... Qa1 {[%clk 0:00:27.8]} 35.
Kg2 {[%clk 0:00:11.6]} 35... Rxf1 {[%clk 0:00:25.7]} 36. Ra2 {[%clk 0:00:10.1]}
36... Qxa2 {[%clk 0:00:24]} 37. Qf6 {[%clk 0:00:10.1]} 37... Qa1 {[%clk
0:00:24.6]} 38. Rd4 {[%clk 0:00:10.3]} 38... Qxd4 {[%clk 0:00:19.3]} 39. Qxd4
{[%clk 0:00:09.3]} 39... f6 {[%clk 0:00:18.4]} 40. Qxd5+ {[%clk 0:00:09.3]}
40... Kh8 {[%clk 0:00:18.1]} 41. Kxf1 {[%clk 0:00:08.5]} 41... Nb4 {[%clk
0:00:17.8]} 42. Qd7 {[%clk 0:00:08.2]} 42... Rg8 {[%clk 0:00:18.3]} 43. Qf7
{[%clk 0:00:07.7]} 43... Nd5 {[%clk 0:00:15.3]} 44. Qxd5 {[%clk 0:00:07.8]}
44... Rf8 {[%clk 0:00:11.8]} 45. Qd7 {[%clk 0:00:07.2]} 45... Rg8 {[%clk
0:00:12]} 46. Ng5 {[%clk 0:00:07.1]} 46... fxg5 {[%clk 0:00:11.3]} 47. Qd4+
{[%clk 0:00:07.2]} 47... Rg7 {[%clk 0:00:11.4]} 48. Qf6 {[%clk 0:00:07.3]} 48...
Kg8 {[%clk 0:00:11.2]} 49. hxg7 {[%clk 0:00:06.2]} 49... h5 {[%clk 0:00:10.5]}
50. gxh5 {[%clk 0:00:04.4]} 50... g4 {[%clk 0:00:10.2]} 51. Qf8+ {[%clk
0:00:05.3]} 51... Kh7 {[%clk 0:00:10.2]} 52. g8=Q# {[%clk 0:00:06.2]} 1-0

[Event "*** SCC Grand Prix: Titled Tuesday Blitz"]
[Site "Chess.com"]
[Date "2020.06.02"]
[Round "1"]
[White "MashaFromRussia"]
[Black "dretch"]
[Result "1/2-1/2"]
[WhiteElo "2405"]
[BlackElo "2766"]
[TimeControl "180+1"]
[EndTime "10:08:18 PDT"]
[Termination "Game drawn by repetition"]

1. d4 {[%clk 0:03:00.9]} 1... d5 {[%clk 0:02:58.2]} 2. c4 {[%clk 0:03:01]} 2...
c6 {[%clk 0:02:57.2]} 3. Nf3 {[%clk 0:03:01.1]} 3... Nf6 {[%clk 0:02:57]} 4. Nc3
{[%clk 0:03:01.5]} 4... dxc4 {[%clk 0:02:53.6]} 5. a4 {[%clk 0:03:01.3]} 5...
Bf5 {[%clk 0:02:52.8]} 6. e3 {[%clk 0:03:00.4]} 6... e6 {[%clk 0:02:52.4]} 7.
Bxc4 {[%clk 0:03:00.7]} 7... Bb4 {[%clk 0:02:52.4]} 8. O-O {[%clk 0:03:01.1]}
8... O-O {[%clk 0:02:49.3]} 9. Qe2 {[%clk 0:03:01.4]} 9... Nbd7 {[%clk
0:02:46.3]} 10. Rd1 {[%clk 0:03:01.3]} 10... Bg6 {[%clk 0:02:33.6]} 11. Nh4
{[%clk 0:02:57.3]} 11... Bh5 {[%clk 0:02:31.8]} 12. Nf3 {[%clk 0:02:44.6]} 12...
Qa5 {[%clk 0:02:13.3]} 13. e4 {[%clk 0:02:25.8]} 13... e5 {[%clk 0:01:51.8]} 14.
d5 {[%clk 0:02:14.8]} 14... Nc5 {[%clk 0:01:47.6]} 15. Bg5 {[%clk 0:02:07.7]}
15... Bxc3 {[%clk 0:01:33.5]} 16. Bxf6 {[%clk 0:02:07.3]} 16... gxf6 {[%clk
0:00:58.6]} 17. bxc3 {[%clk 0:02:06.7]} 17... Qxc3 {[%clk 0:00:57.8]} 18. Rdc1
{[%clk 0:01:44]} 18... Qa5 {[%clk 0:00:46.7]} 19. Qe3 {[%clk 0:01:38.6]} 19...
Rad8 {[%clk 0:00:19.8]} 20. dxc6 {[%clk 0:01:31.2]} 20... bxc6 {[%clk
0:00:18.5]} 21. Bxf7+ {[%clk 0:01:28.1]} 21... Rxf7 {[%clk 0:00:17.5]} 22. Rxc5
{[%clk 0:01:28.3]} 22... Qb6 {[%clk 0:00:11.4]} 23. Rac1 {[%clk 0:01:27.5]}
23... Rfd7 {[%clk 0:00:10.3]} 24. h3 {[%clk 0:01:25.1]} 24... Rd1+ {[%clk
0:00:10.1]} 25. Kh2 {[%clk 0:01:23.4]} 25... Rxc1 {[%clk 0:00:10.7]} 26. Qxc1
{[%clk 0:01:19.6]} 26... Bxf3 {[%clk 0:00:10.8]} 27. gxf3 {[%clk 0:01:19.8]}
27... Rd3 {[%clk 0:00:10.9]} 28. Qc4+ {[%clk 0:01:01.2]} 28... Kg7 {[%clk
0:00:10.1]} 29. a5 {[%clk 0:00:44.5]} 29... Qd8 {[%clk 0:00:09.1]} 30. Rxc6
{[%clk 0:00:40]} 30... Rd7 {[%clk 0:00:09.1]} 31. Qe6 {[%clk 0:00:33.2]} 31...
Rf7 {[%clk 0:00:07.7]} 32. Qg4+ {[%clk 0:00:25]} 32... Kh6 {[%clk 0:00:07.8]}
33. Qh4+ {[%clk 0:00:19.8]} 33... Kg7 {[%clk 0:00:07.2]} 34. Qg4+ {[%clk
0:00:19.9]} 34... Kh6 {[%clk 0:00:07.3]} 35. Rc1 {[%clk 0:00:17.2]} 35... f5
{[%clk 0:00:05.1]} 36. exf5 {[%clk 0:00:16.1]} 36... Qg5 {[%clk 0:00:05.2]} 37.
Rc6+ {[%clk 0:00:15.8]} 37... Rf6 {[%clk 0:00:05.4]} 38. Qxg5+ {[%clk 0:00:11]}
38... Kxg5 {[%clk 0:00:05.5]} 39. Rxf6 {[%clk 0:00:11.3]} 39... Kxf6 {[%clk
0:00:06.4]} 40. Kg3 {[%clk 0:00:10]} 40... Kxf5 {[%clk 0:00:06.7]} 41. a6 {[%clk
0:00:09.6]} 41... h6 {[%clk 0:00:06.5]} 42. h4 {[%clk 0:00:09.4]} 42... h5
{[%clk 0:00:07]} 43. Kh3 {[%clk 0:00:08.8]} 43... Kf4 {[%clk 0:00:06.8]} 44. Kg2
{[%clk 0:00:09.1]} 44... Kf5 {[%clk 0:00:07.1]} 45. Kg3 {[%clk 0:00:09.3]} 45...
Ke6 {[%clk 0:00:07.5]} 46. f4 {[%clk 0:00:09.6]} 46... e4 {[%clk 0:00:07.9]} 47.
Kh2 {[%clk 0:00:08.4]} 47... Kf6 {[%clk 0:00:07.7]} 48. Kg3 {[%clk 0:00:08.7]}
48... Ke6 {[%clk 0:00:07.8]} 49. Kg2 {[%clk 0:00:07.7]} 49... Kf6 {[%clk
0:00:07.6]} 50. Kh3 {[%clk 0:00:02]} 50... Ke6 {[%clk 0:00:07.3]} 51. Kg3 {[%clk
0:00:02.1]} 51... Kf6 {[%clk 0:00:07.5]} 52. Kg2 {[%clk 0:00:03]} 52... Kg6
{[%clk 0:00:07.9]} 53. Kg3 {[%clk 0:00:03.9]} 53... Kf6 {[%clk 0:00:08.3]} 54.
Kg2 {[%clk 0:00:04.2]} 54... Ke6 {[%clk 0:00:08.7]} 55. Kh3 {[%clk 0:00:04.5]}
55... Kf6 {[%clk 0:00:08.8]} 56. Kg2 {[%clk 0:00:04.7]} 1/2-1/2

[Event "*** SCC Grand Prix: Titled Tuesday Blitz"]
[Site "Chess.com"]
[Date "2020.06.02"]
[Round "1"]
[White "Escanor89"]
[Black "JuliaEfremova"]
[Result "1-0"]
[WhiteElo "2567"]
[BlackElo "2226"]
[TimeControl "180+1"]
[EndTime "10:08:18 PDT"]
[Termination "Escanor89 won by resignation"]

1. c4 {[%clk 0:03:00.9]} 1... c5 {[%clk 0:02:55.3]} 2. Nf3 {[%clk 0:03:00]} 2...
Nf6 {[%clk 0:02:53.7]} 3. Nc3 {[%clk 0:02:59.2]} 3... g6 {[%clk 0:02:52.1]} 4.
d4 {[%clk 0:02:58.4]} 4... Bg7 {[%clk 0:02:52.6]} 5. e4 {[%clk 0:02:56.2]} 5...
cxd4 {[%clk 0:02:50.8]} 6. Nxd4 {[%clk 0:02:56.3]} 6... d6 {[%clk 0:02:50.6]} 7.
Be2 {[%clk 0:02:54.4]} 7... O-O {[%clk 0:02:49.9]} 8. O-O {[%clk 0:02:53]} 8...
Nc6 {[%clk 0:02:48.3]} 9. Be3 {[%clk 0:02:52.7]} 9... Nxd4 {[%clk 0:02:42]} 10.
Bxd4 {[%clk 0:02:52.3]} 10... Qa5 {[%clk 0:02:39.7]} 11. f4 {[%clk 0:02:35]}
11... Bd7 {[%clk 0:02:21.4]} 12. e5 {[%clk 0:02:04]} 12... dxe5 {[%clk
0:02:08.9]} 13. fxe5 {[%clk 0:02:03.8]} 13... Ne8 {[%clk 0:02:02.7]} 14. Nd5
{[%clk 0:02:02.5]} 14... Be6 {[%clk 0:01:52.7]} 15. Nxe7+ {[%clk 0:01:54.4]}
15... Kh8 {[%clk 0:01:52.6]} 16. Nd5 {[%clk 0:01:39.3]} 16... Bxd5 {[%clk
0:01:49.4]} 17. cxd5 {[%clk 0:01:39.2]} 17... Qxd5 {[%clk 0:01:49.6]} 18. Bf3
{[%clk 0:01:38.5]} 18... Qb5 {[%clk 0:01:36]} 19. a4 {[%clk 0:01:33.6]} 19...
Qb4 {[%clk 0:01:30]} 20. Kh1 {[%clk 0:00:46.1]} 20... Nc7 {[%clk 0:01:24.3]} 21.
Bc3 {[%clk 0:00:38.2]} 21... Qe7 {[%clk 0:01:19.4]} 22. Re1 {[%clk 0:00:35]}
22... Rad8 {[%clk 0:01:18.5]} 23. Qb3 {[%clk 0:00:34.9]} 23... Qh4 {[%clk
0:01:06.1]} 24. Qxb7 {[%clk 0:00:30.8]} 24... Ne6 {[%clk 0:01:03.5]} 25. Qxa7
{[%clk 0:00:29.2]} 25... h5 {[%clk 0:00:44.3]} 26. Qe3 {[%clk 0:00:25.4]} 26...
Kh7 {[%clk 0:00:40.4]} 27. a5 {[%clk 0:00:24.5]} 27... Bh6 {[%clk 0:00:40.5]}
28. Qe4 {[%clk 0:00:24.7]} 28... Bf4 {[%clk 0:00:35.6]} 29. g3 {[%clk
0:00:19.2]} 29... Bxg3 {[%clk 0:00:35.8]} 30. Qxh4 {[%clk 0:00:19]} 30... Bxh4
{[%clk 0:00:36.7]} 31. Red1 {[%clk 0:00:19.2]} 31... Nc5 {[%clk 0:00:34.9]} 32.
Rxd8 {[%clk 0:00:17.7]} 32... Rxd8 {[%clk 0:00:35.8]} 33. a6 {[%clk 0:00:18.1]}
33... Nxa6 {[%clk 0:00:25.5]} 34. Rxa6 {[%clk 0:00:18]} 34... Rd7 {[%clk
0:00:20.3]} 35. Kg2 {[%clk 0:00:17.1]} 35... Bg5 {[%clk 0:00:18.9]} 36. Rd6
{[%clk 0:00:16.9]} 36... Ra7 {[%clk 0:00:18.2]} 37. Bd5 {[%clk 0:00:15.4]} 37...
Ra1 {[%clk 0:00:14.4]} 38. Rd7 {[%clk 0:00:14.6]} 38... Kg8 {[%clk 0:00:13]} 39.
Bxf7+ {[%clk 0:00:14]} 39... Kg7 {[%clk 0:00:11.8]} 40. Bc4+ {[%clk 0:00:13.2]}
40... Kh6 {[%clk 0:00:11.8]} 41. e6 {[%clk 0:00:13.2]} 41... Rc1 {[%clk
0:00:10.8]} 42. Bg7+ {[%clk 0:00:11.7]} 42... Kh7 {[%clk 0:00:09.8]} 43. Bf6+
{[%clk 0:00:11.8]} 43... Kh6 {[%clk 0:00:10.3]} 44. Bxg5+ {[%clk 0:00:12.3]}
44... Kxg5 {[%clk 0:00:11.2]} 45. e7 {[%clk 0:00:12.7]} 45... Re1 {[%clk
0:00:11.6]} 46. Bf7 {[%clk 0:00:10.9]} 46... Kf6 {[%clk 0:00:10.7]} 47. e8=Q
{[%clk 0:00:10.6]} 47... Rxe8 {[%clk 0:00:11.1]} 48. Bxe8 {[%clk 0:00:10.8]}
48... g5 {[%clk 0:00:12]} 49. b4 {[%clk 0:00:10.6]} 49... Ke6 {[%clk 0:00:12.9]}
50. b5 {[%clk 0:00:10.7]} 50... h4 {[%clk 0:00:13]} 51. b6 {[%clk 0:00:10.4]}
51... g4 {[%clk 0:00:13.9]} 52. h3 {[%clk 0:00:10.5]} 52... g3 {[%clk
0:00:13.7]} 53. b7 {[%clk 0:00:10.7]} 53... Kf6 {[%clk 0:00:13.8]} 54. Rd4
{[%clk 0:00:10.6]} 54... Kg5 {[%clk 0:00:14.7]} 55. Rg4+ {[%clk 0:00:10.7]}
55... Kh6 {[%clk 0:00:15.6]} 56. Rxh4+ {[%clk 0:00:10.8]} 56... Kg5 {[%clk
0:00:15.5]} 57. Rg4+ {[%clk 0:00:11.3]} 57... Kf6 {[%clk 0:00:15.3]} 58. Rxg3
{[%clk 0:00:11.8]} 58... Ke7 {[%clk 0:00:15.2]} 59. b8=Q {[%clk 0:00:12.2]}
59... Kf6 {[%clk 0:00:14.8]} 60. Qb6+ {[%clk 0:00:12.4]} 60... Ke7 {[%clk
0:00:14.9]} 61. Rg7+ {[%clk 0:00:11.9]} 61... Kf8 {[%clk 0:00:15.2]} 62. Qf6+
{[%clk 0:00:11.8]} 1-0

[Event "*** SCC Grand Prix: Titled Tuesday Blitz"]
[Site "Chess.com"]
[Date "2020.06.02"]
[Round "1"]
[White "guillembaches"]
[Black "Guenplen"]
[Result "0-1"]
[WhiteElo "2437"]
[BlackElo "2922"]
[TimeControl "180+1"]
[EndTime "10:08:20 PDT"]
[Termination "Guenplen won on time"]

1. e4 {[%clk 0:03:00.9]} 1... c5 {[%clk 0:02:59.3]} 2. Nf3 {[%clk 0:03:01.1]}
2... e6 {[%clk 0:02:59.7]} 3. g3 {[%clk 0:03:01]} 3... Nc6 {[%clk 0:02:59]} 4.
Bg2 {[%clk 0:03:00.8]} 4... Nf6 {[%clk 0:02:59.6]} 5. Qe2 {[%clk 0:02:58.9]}
5... Be7 {[%clk 0:02:59.1]} 6. O-O {[%clk 0:02:56.7]} 6... O-O {[%clk
0:02:58.3]} 7. c3 {[%clk 0:02:56.3]} 7... d5 {[%clk 0:02:53.2]} 8. exd5 {[%clk
0:02:50.6]} 8... Nxd5 {[%clk 0:02:39.4]} 9. Rd1 {[%clk 0:02:44.9]} 9... Bf6
{[%clk 0:02:37.7]} 10. Na3 {[%clk 0:02:38.7]} 10... b6 {[%clk 0:02:35.6]} 11.
Nc4 {[%clk 0:02:34.8]} 11... Bb7 {[%clk 0:02:24.8]} 12. a4 {[%clk 0:02:27.8]}
12... Qc7 {[%clk 0:02:16.2]} 13. d3 {[%clk 0:02:22.1]} 13... Rad8 {[%clk
0:02:08.1]} 14. Ng5 {[%clk 0:02:18.3]} 14... Rfe8 {[%clk 0:01:56.2]} 15. Qh5
{[%clk 0:02:04.5]} 15... Bxg5 {[%clk 0:01:35.2]} 16. Bxg5 {[%clk 0:02:05.4]}
16... f6 {[%clk 0:01:33.6]} 17. Bd2 {[%clk 0:01:49.4]} 17... Qf7 {[%clk
0:01:31.8]} 18. Qe2 {[%clk 0:01:43.8]} 18... Ba8 {[%clk 0:01:17.5]} 19. Re1
{[%clk 0:01:39.8]} 19... e5 {[%clk 0:01:11.4]} 20. Rad1 {[%clk 0:01:39.4]} 20...
Nc7 {[%clk 0:00:49]} 21. Be3 {[%clk 0:01:24.2]} 21... Nd5 {[%clk 0:00:47.5]} 22.
Bc1 {[%clk 0:01:23]} 22... Nc7 {[%clk 0:00:47.4]} 23. Be3 {[%clk 0:01:22.6]}
23... Ne6 {[%clk 0:00:40.8]} 24. Bd2 {[%clk 0:01:10.2]} 24... Qc7 {[%clk
0:00:32.6]} 25. Ne3 {[%clk 0:01:06.8]} 25... Ne7 {[%clk 0:00:28.7]} 26. Be4
{[%clk 0:01:03.2]} 26... Ng5 {[%clk 0:00:19]} 27. Bxa8 {[%clk 0:00:49.3]} 27...
Rxa8 {[%clk 0:00:19.9]} 28. h4 {[%clk 0:00:48.4]} 28... Nf7 {[%clk 0:00:20.1]}
29. Nc4 {[%clk 0:00:42.2]} 29... Rad8 {[%clk 0:00:19.9]} 30. Qe4 {[%clk
0:00:40.6]} 30... Nd6 {[%clk 0:00:16.8]} 31. Nxd6 {[%clk 0:00:40.6]} 31... Qxd6
{[%clk 0:00:17.2]} 32. Be3 {[%clk 0:00:40.3]} 32... Qd5 {[%clk 0:00:17.1]} 33.
Kg2 {[%clk 0:00:36.6]} 33... Rd7 {[%clk 0:00:16.3]} 34. f3 {[%clk 0:00:35.1]}
34... Red8 {[%clk 0:00:14.7]} 35. Kf2 {[%clk 0:00:20.5]} 35... Qxe4 {[%clk
0:00:14.1]} 36. fxe4 {[%clk 0:00:20.8]} 36... Rxd3 {[%clk 0:00:14.1]} 37. Rxd3
{[%clk 0:00:21]} 37... Rxd3 {[%clk 0:00:15]} 38. a5 {[%clk 0:00:19.9]} 38... Rd7
{[%clk 0:00:11.4]} 39. axb6 {[%clk 0:00:19.8]} 39... axb6 {[%clk 0:00:12.3]} 40.
Ra1 {[%clk 0:00:19.9]} 40... Rb7 {[%clk 0:00:10.9]} 41. Ra8+ {[%clk 0:00:19.4]}
41... Kf7 {[%clk 0:00:11.2]} 42. Ke2 {[%clk 0:00:19.4]} 42... h5 {[%clk
0:00:08.4]} 43. Bf2 {[%clk 0:00:18.4]} 43... Ke6 {[%clk 0:00:05.4]} 44. Ra6
{[%clk 0:00:18.4]} 44... Kd7 {[%clk 0:00:04.8]} 45. b4 {[%clk 0:00:18.1]} 45...
cxb4 {[%clk 0:00:04.4]} 46. cxb4 {[%clk 0:00:19]} 46... Nc8 {[%clk 0:00:04.8]}
47. Ra1 {[%clk 0:00:17.8]} 47... Nd6 {[%clk 0:00:04.4]} 48. Rc1 {[%clk
0:00:16.1]} 48... Nxe4 {[%clk 0:00:03.9]} 49. Be1 {[%clk 0:00:14.5]} 49... Nd6
{[%clk 0:00:04.2]} 50. Rd1 {[%clk 0:00:14.5]} 50... Ke6 {[%clk 0:00:04.7]} 51.
b5 {[%clk 0:00:14.6]} 51... Nxb5 {[%clk 0:00:04.7]} 52. Bb4 {[%clk 0:00:14.9]}
52... Nd4+ {[%clk 0:00:04.9]} 53. Kf2 {[%clk 0:00:14.4]} 53... Rc7 {[%clk
0:00:05]} 54. Ra1 {[%clk 0:00:14.2]} 54... Rc2+ {[%clk 0:00:05.1]} 55. Ke3
{[%clk 0:00:14.5]} 55... Rc4 {[%clk 0:00:06]} 56. Bf8 {[%clk 0:00:13.5]} 56...
Nc2+ {[%clk 0:00:06.2]} 0-1